fUST/lending_fUST_20240706
["ID","MTS","AMOUNT","RATE_DAILY","PERIOD"]
[331362132,1720274835844,-2099.6884772,0.00024,2]
[331362133,1720274835880,-19.82438717,0.00024,2]
[331362134,1720274838225,-601.44099026,0.00024,2]
[331362135,1720274838262,-6199.17779185,0.00024,2]
[331362138,1720274928461,-901.2691498,0.00024,2]
[331362142,1720274928542,-322.00209861,0.00024,2]
[331362144,1720274928582,-67.40744539,0.00024,2]
[331362146,1720274948071,-18331.20687159,0.00024,2]
[331362147,1720274950179,-350.46728037,0.00024481,2]
[331362148,1720274952349,-1986.97335839,0.00025501,2]
[331362149,1720274954318,-154.65203293,0.00026574,2]
[331362150,1720274955294,-531.33500682,0.00026574,2]
[331362151,1720274955321,-1107.40449304,0.00026848,2]
[331362152,1720274955346,-879.44990711,0.00026848,2]
[331362153,1720274955368,-154.79948781,0.00027184,2]
[331362154,1720274955391,-789.98480892,0.00027399,2]
[331362155,1720274955414,-402.35776708,0.00027399,2]
[331362156,1720274956325,-155.23189542,0.0003,4]
[331362157,1720274956351,-151.0,0.00032601,30]
[331362158,1720274956377,-151.0,0.00032601,30]
[331362159,1720274956403,-2132.69930736,0.00037587,4]
[331362160,1720274956522,-772.4852743,0.00038374,2]
[331362161,1720274956547,-962.96577273,0.00038999,4]
[331362162,1720274956572,-661.48871602,0.00039393,4]
[331362163,1720274956861,878.09217026,0.00027399,2]
[331362164,1720274963630,554.35445652,0.00039393,4]
[331362165,1720274978412,2126.99307263,0.0002909,2]
[331362196,1720275038194,-380.59109039,0.00039999,4]
[331362197,1720275038210,-368.51184958,0.00040229,4]
[331362199,1720275038243,-154.63660398,0.00040999,4]
[331362201,1720275038264,-208.6541556,0.00041314,4]
[331362202,1720275038280,-1000.0,0.000425,120]
[331362203,1720275038301,-1000.0,0.00043,43]
[331362204,1720275038315,-378.33,0.0004315,2]
[331362205,1720275038330,-1514.26873221,0.00043625,2]
[331362206,1720275038375,-29570.1221523,0.00043715,5]
[331362207,1720275038388,-2909.88542315,0.00043724,2]
[331362208,1720275038412,-56886.04626225,0.00043725,5]
[331362209,1720275038452,-2000.0,0.00043735,2]
[331362210,1720275038486,-157.0,0.000438,47]
[331362211,1720275038499,-23820.68153818,0.00043824,31]
[331362212,1720275038567,-59140.2443046,0.00043824,5]
[331362213,1720275038581,-5000.0,0.00043824,120]
[331362214,1720275038594,-5000.0,0.00043824,120]
[331362215,1720275038609,-5000.0,0.00043824,120]
[331362216,1720275038626,-2484.27004878,0.00043824,120]
[331362217,1720275038640,-500.0,0.00043824,31]
[331362218,1720275038665,-272.02964305,0.00043824,31]
[331362219,1720275038689,-500.0,0.00043824,31]
[331362220,1720275038714,-4579.4460841,0.00043825,31]
[331362221,1720275038727,-7289.72304205,0.00043825,31]
[331362222,1720275038745,-177420.732914,0.00043825,5]
[331362223,1720275038781,-68593.50520171,0.00043834,40]
[331362224,1720275038812,-361.64934437,0.00043835,14]
[331362225,1720275038843,-235.26265234,0.00043835,120]
[331362226,1720275038860,-500.0,0.00043835,120]
[331362227,1720275038873,-500.91965586,0.00043835,120]
[331362228,1720275038911,-501.42397248,0.00043835,120]
[331362229,1720275038923,-286.27104812,0.00043835,120]
[331362230,1720275038937,-502.47443858,0.00043835,120]
[331362231,1720275038950,-500.0,0.00043835,120]
[331362232,1720275038976,-560.04294068,0.00043835,120]
[331362233,1720275038989,-500.0,0.00043835,120]
[331362234,1720275039028,-501.75438069,0.00043835,120]
[331362235,1720275039042,-500.0,0.00043835,120]
[331362236,1720275039063,-169.71853272,0.00043835,120]
[331362237,1720275039077,-500.0,0.00043835,120]
[331362238,1720275039118,-504.85003077,0.00043835,120]
[331362239,1720275039130,-500.0,0.00043835,120]
[331362240,1720275039158,-500.0,0.00043835,120]
[331362241,1720275039203,-500.0,0.00043835,120]
[331362242,1720275039228,-500.0,0.00043835,120]
[331362243,1720275039257,-529.04502706,0.00043835,120]
[331362244,1720275039297,-541.44,0.00043835,120]
[331362245,1720275039322,-500.0,0.00043835,120]
[331362246,1720275039357,-500.0,0.00043835,120]
[331362247,1720275039370,-500.0,0.00043835,120]
[331362248,1720275039394,-500.0,0.00043835,120]
[331362249,1720275039430,-2000.0,0.00043835,60]
[331362250,1720275039465,-500.0,0.00043835,120]
[331362251,1720275039492,-500.0,0.00043835,120]
[331362252,1720275039588,-500.0,0.00043835,120]
[331362253,1720275039601,-590.666232,0.00043835,120]
[331362254,1720275039619,-200.10007512,0.00043835,120]
[331362255,1720275039652,-500.0,0.00043835,120]
[331362256,1720275039686,-500.0,0.00043835,120]
[331362257,1720275039698,-502.10208647,0.00043835,120]
[331362258,1720275039721,-500.0,0.00043835,120]
[331362264,1720275040014,-505.14523117,0.00043835,120]
[331362265,1720275040037,-500.0,0.00043835,120]
[331362269,1720275040086,-500.0,0.00043835,120]
[331362270,1720275040098,-500.0,0.00043835,120]
[331362271,1720275040137,-259.95869411,0.00043835,120]
[331362272,1720275040164,-500.0,0.00043835,120]
[331362273,1720275040226,-499.44329164,0.00043835,120]
[331362274,1720275040257,-500.0,0.00043835,120]
[331362275,1720275040304,-528.27,0.00043835,120]
[331362276,1720275040335,-500.0,0.00043835,120]
[331362277,1720275040394,-500.0,0.00043835,120]
[331362278,1720275040470,-500.0,0.00043835,120]
[331362279,1720275040482,-500.0,0.00043835,120]
[331362280,1720275040497,-500.0,0.00043835,120]
[331362281,1720275040536,-500.0,0.00043835,120]
[331362282,1720275040547,-500.0,0.00043835,120]
[331362283,1720275040559,-500.0,0.00043835,120]
[331362284,1720275040572,-500.0,0.00043835,120]
[331362285,1720275040587,-500.0,0.00043835,120]
[331362286,1720275040620,-500.0,0.00043835,120]
[331362287,1720275040660,-500.0,0.00043835,120]
[331362288,1720275040681,-502.03299405,0.00043835,120]
[331362289,1720275040692,-571.32,0.00043835,120]
[331362290,1720275040750,-500.0,0.00043835,120]
[331362291,1720275040763,-500.0,0.00043835,120]
[331362292,1720275040774,-500.0,0.00043835,120]
[331362293,1720275040846,-500.0,0.00043835,120]
[331362294,1720275040865,-500.0,0.00043835,120]
[331362295,1720275040876,-500.0,0.00043835,120]
[331362296,1720275040887,-500.0,0.00043835,120]
[331362297,1720275040926,-500.0,0.00043835,120]
[331362298,1720275040938,-500.0,0.00043835,120]
[331362299,1720275040962,-543.84,0.00043835,120]
[331362300,1720275040987,-151.0,0.00043835,14]
[331362301,1720275041006,-151.0,0.00043835,14]
[331362302,1720275041017,-500.0,0.00043835,120]
[331362303,1720275041039,-151.0,0.00043835,14]
[331362304,1720275041049,-502.20503467,0.00043835,120]
[331362305,1720275041059,-151.0,0.00043835,14]
[331362307,1720275041124,-151.0,0.00043835,14]
[331362309,1720275041135,-151.0,0.00043835,14]
[331362311,1720275041156,-825.0,0.00043835,120]
[331362312,1720275041167,-356.72244898,0.00043835,120]
[331362313,1720275041178,-500.0,0.00043835,120]
[331362314,1720275041196,-500.0,0.00043835,120]
[331362315,1720275041207,-407.05237673,0.00043835,120]
[331362316,1720275041218,-501.85525196,0.00043835,120]
[331362318,1720275041229,-217.3320723,0.00043835,120]
[331362319,1720275041251,-500.4798113,0.00043835,120]
[331362320,1720275041288,-500.0,0.00043835,120]
[331362321,1720275041326,-500.0,0.00043835,120]
[331362322,1720275041342,-500.0,0.00043835,120]
[331362323,1720275041369,-151.0,0.00043835,14]
[331362324,1720275041408,-500.0,0.00043835,120]
[331362325,1720275041432,-151.0,0.00043835,14]
[331362326,1720275041445,-151.0,0.00043835,14]
[331362327,1720275041459,-151.0,0.00043835,14]
[331362328,1720275041480,-151.0,0.00043835,14]
[331362329,1720275041496,-151.0,0.00043835,14]
[331362330,1720275041506,-500.0,0.00043835,2]
[331362331,1720275041521,-500.0,0.00043835,120]
[331362332,1720275041536,-500.0,0.00043835,120]
[331362333,1720275041545,-1444.41,0.00043835,120]
[331362334,1720275041561,-200.0,0.00043835,7]
[331362335,1720275041573,-500.0,0.00043835,120]
[331362336,1720275041660,-527.07,0.00043835,120]
[331362337,1720275041671,-500.0,0.00043835,120]
[331362338,1720275041701,-637.23736675,0.00043835,120]
[331362339,1720275041715,-500.38796463,0.00043835,120]
[331362340,1720275041744,-500.0,0.00043835,120]
[331362341,1720275041767,-500.0,0.00043835,120]
[331362342,1720275041801,-500.0,0.00043835,120]
[331362343,1720275041811,-236.05462256,0.00043835,120]
[331362344,1720275041821,-500.0,0.00043835,120]
[331362345,1720275041855,-151.0,0.00043835,14]
[331362346,1720275041866,-151.0,0.00043835,14]
[331362347,1720275041881,-151.0,0.00043835,14]
[331362349,1720275041894,-151.0,0.00043835,14]
[331362350,1720275041909,-151.0,0.00043835,14]
[331362352,1720275041920,-151.0,0.00043835,14]
[331362353,1720275041936,-151.0,0.00043835,14]
[331362354,1720275041963,-151.0,0.00043835,14]
[331362356,1720275041975,-151.0,0.00043835,14]
[331362359,1720275042003,-151.0,0.00043835,14]
[331362360,1720275042014,-151.0,0.00043835,14]
[331362361,1720275042027,-151.0,0.00043835,14]
[331362363,1720275042038,-151.0,0.00043835,14]
[331362365,1720275042052,-151.0,0.00043835,14]
[331362366,1720275042064,-500.0,0.00043835,120]
[331362367,1720275042076,-154.058,0.00043835,14]
[331362369,1720275042088,-500.0,0.00043835,120]
[331362371,1720275042137,-500.0,0.00043835,120]
[331362374,1720275042194,-151.0,0.00043835,14]
[331362376,1720275042206,-726.02,0.00043835,120]
[331362377,1720275042259,-500.0,0.00043835,120]
[331362380,1720275042320,-635.51,0.00043835,120]
[331362381,1720275042337,-500.0,0.00043835,120]
[331362382,1720275042347,-500.0,0.00043835,120]
[331362383,1720275042358,-500.97986568,0.00043835,120]
[331362384,1720275042369,-502.01826019,0.00043835,120]
[331362385,1720275042396,-4253.94,0.00043835,120]
[331362386,1720275042413,-506.31691274,0.00043835,120]
[331362387,1720275042425,-500.0,0.00043835,120]
[331362388,1720275042468,-500.0,0.00043835,120]
[331362389,1720275042478,-500.0,0.00043835,120]
[331362390,1720275042493,-1407.07,0.00043835,120]
[331362391,1720275042523,-500.0,0.00043835,120]
[331362392,1720275042538,-500.0,0.00043835,120]
[331362393,1720275042554,-151.0,0.00043835,2]
[331362394,1720275042567,-151.0,0.00043835,2]
[331362395,1720275042614,-151.0,0.00043835,2]
[331362396,1720275042633,-151.0,0.00043835,2]
[331362397,1720275042667,-151.0,0.00043835,2]
[331362398,1720275042701,-151.0,0.00043835,2]
[331362399,1720275042734,-151.0,0.00043835,2]
[331362400,1720275042756,-151.0,0.00043835,2]
[331362401,1720275042767,-151.0,0.00043835,2]
[331362402,1720275042821,-194.567365,0.00043835,2]
[331362403,1720275042851,-500.0,0.00043835,120]
[331362404,1720275042862,-500.0,0.00043835,120]
[331362405,1720275042875,-500.0,0.00043835,120]
[331362406,1720275042885,-1204.96,0.00043835,120]
[331362407,1720275042908,-500.0,0.00043835,120]
[331362408,1720275042920,-500.0,0.00043835,120]
[331362409,1720275042936,-500.0,0.00043835,120]
[331362410,1720275042961,-732.41,0.00043835,120]
[331362411,1720275042972,-500.0,0.00043835,120]
[331362412,1720275042982,-500.0,0.00043835,120]
[331362413,1720275042993,-500.0,0.00043835,120]
[331362414,1720275043003,-503.16108339,0.00043835,120]
[331362415,1720275043014,-503.45886022,0.00043835,25]
[331362416,1720275043025,-505.91922995,0.00043835,120]
[331362417,1720275043044,-500.0,0.00043835,120]
[331362418,1720275043088,-500.0,0.00043835,120]
[331362421,1720275043151,-500.0,0.00043835,120]
[331362423,1720275043162,-500.0,0.00043835,120]
[331362424,1720275043172,-7127.55,0.00043835,120]
[331362425,1720275043184,-7127.55,0.00043835,120]
[331362427,1720275043195,-500.0,0.00043835,120]
[331362428,1720275043222,-7127.55,0.00043835,120]
[331362430,1720275043258,-500.0,0.00043835,20]
[331362432,1720275043268,-7127.55,0.00043835,120]
[331362433,1720275043278,-7127.55,0.00043835,120]
[331362436,1720275043310,-7127.55,0.00043835,120]
[331362438,1720275043323,-7127.55,0.00043835,120]
[331362439,1720275043334,-7127.55,0.00043835,120]
[331362441,1720275043344,-7127.55,0.00043835,120]
[331362442,1720275043355,-7127.55,0.00043835,120]
[331362445,1720275043378,-7127.55,0.00043835,120]
[331362447,1720275043395,-7127.55,0.00043835,120]
[331362449,1720275043405,-7127.55,0.00043835,120]
[331362451,1720275043438,-7127.55,0.00043835,120]
[331362452,1720275043448,-424.43795516,0.00043835,120]
[331362454,1720275043472,-7127.55,0.00043835,120]
[331362456,1720275043495,-7127.55,0.00043835,120]
[331362458,1720275043506,-7127.55,0.00043835,120]
[331362460,1720275043516,-7127.55,0.00043835,120]
[331362462,1720275043528,-7127.55,0.00043835,120]
[331362464,1720275043552,-7127.55,0.00043835,120]
[331362469,1720275043622,-7127.55,0.00043835,120]
[331362471,1720275043632,-500.0,0.00043835,120]
[331362472,1720275043642,-7127.55,0.00043835,120]
[331362473,1720275043664,-500.0,0.00043835,120]
[331362475,1720275043698,-500.0,0.00043835,120]
[331362476,1720275043711,-7127.55,0.00043835,120]
[331362478,1720275043721,-7127.5648481,0.00043835,120]
[331362480,1720275043732,-500.0,0.00043835,120]
[331362483,1720275043767,-500.0,0.00043835,120]
[331362484,1720275043787,-525.00418764,0.00043835,120]
[331362485,1720275043820,-500.0,0.00043835,120]
[331362486,1720275043833,-693.6,0.00043835,120]
[331362487,1720275043926,-508.48225823,0.00043835,120]
[331362488,1720275043936,-500.0,0.00043835,120]
[331362489,1720275043946,-500.0,0.00043835,120]
[331362490,1720275043958,-500.55,0.00043835,120]
[331362491,1720275043969,-500.0,0.00043835,120]
[331362492,1720275043985,-2240.12,0.00043835,120]
[331362493,1720275043995,-500.0,0.00043835,120]
[331362494,1720275044015,-540.47793969,0.00043835,120]
[331362495,1720275044034,-500.0,0.00043835,120]
[331362496,1720275044045,-532.96937777,0.00043835,120]
[331362497,1720275044103,-500.0,0.00043835,120]
[331362498,1720275044114,-515.64886938,0.00043835,120]
[331362499,1720275044160,-500.0,0.00043835,120]
[331362500,1720275044172,-500.0,0.00043835,120]
[331362501,1720275044186,-500.0,0.00043835,120]
[331362502,1720275044197,-500.0,0.00043835,120]
[331362503,1720275044232,-500.0,0.00043835,120]
[331362504,1720275044316,-500.0,0.00043835,120]
[331362505,1720275044327,-500.0,0.00043835,120]
[331362506,1720275044337,-500.0,0.00043835,120]
[331362507,1720275044404,-500.6227545,0.00043835,120]
[331362508,1720275044428,-1137.37,0.00043835,120]
[331362509,1720275044438,-500.0,0.00043835,120]
[331362510,1720275044449,-500.0,0.00043835,120]
[331362511,1720275044493,-151.0,0.00043835,14]
[331362512,1720275044506,-151.0,0.00043835,14]
[331362513,1720275044540,-503.50602079,0.00043835,120]
[331362514,1720275044564,-151.0,0.00043835,14]
[331362515,1720275044575,-1950.15,0.00043835,120]
[331362516,1720275044623,-504.49059615,0.00043835,120]
[331362517,1720275044634,-500.0,0.00043835,120]
[331362518,1720275044671,-500.0,0.00043835,120]
[331362519,1720275044711,-1013.45,0.00043835,120]
[331362520,1720275044722,-500.0,0.00043835,120]
[331362521,1720275044736,-500.0,0.00043835,120]
[331362522,1720275044755,-272.62857,0.00043835,14]
[331362523,1720275044775,-1086.93,0.00043835,120]
[331362524,1720275044803,-151.0,0.00043835,14]
[331362525,1720275044828,-151.0,0.00043835,14]
[331362526,1720275044839,-151.0,0.00043835,14]
[331362527,1720275044849,-151.0,0.00043835,14]
[331362528,1720275044862,-151.0,0.00043835,14]
[331362529,1720275044883,-500.0,0.00043835,120]
[331362530,1720275044904,-500.0,0.00043835,120]
[331362531,1720275044954,-151.0,0.00043835,14]
[331362532,1720275044967,-500.0,0.00043835,120]
[331362533,1720275044981,-151.0,0.00043835,14]
[331362534,1720275045005,-243.311123,0.00043835,14]
[331362535,1720275045016,-568.35,0.00043835,120]
[331362536,1720275045052,-500.0,0.00043835,120]
[331362537,1720275045064,-523.54,0.00043835,120]
[331362538,1720275045104,-500.0,0.00043835,120]
[331362539,1720275045117,-500.0,0.00043835,120]
[331362540,1720275045128,-533.93,0.00043835,120]
[331362541,1720275045139,-500.0,0.00043835,2]
[331362542,1720275045178,-523.87,0.00043835,120]
[331362543,1720275045204,-196.10443754,0.00043835,120]
[331362544,1720275045225,-597.88,0.00043835,120]
[331362545,1720275045258,-506.53959381,0.00043835,120]
[331362546,1720275045270,-503.71749401,0.00043835,120]
[331362547,1720275045292,-218.240125,0.00043835,14]
[331362548,1720275045331,-500.0,0.00043835,120]
[331362549,1720275045342,-601.3,0.00043835,120]
[331362550,1720275045352,-500.0,0.00043835,120]
[331362551,1720275045364,-151.0,0.00043835,14]
[331362552,1720275045374,-151.0,0.00043835,14]
[331362553,1720275045412,-151.0,0.00043835,14]
[331362554,1720275045431,-151.0,0.00043835,14]
[331362555,1720275045441,-151.0,0.00043835,14]
[331362556,1720275045451,-500.0,0.00043835,120]
[331362557,1720275045468,-151.0,0.00043835,14]
[331362558,1720275045523,-151.0,0.00043835,14]
[331362559,1720275045534,-151.0,0.00043835,14]
[331362560,1720275045544,-151.0,0.00043835,14]
[331362561,1720275045591,-195.990902,0.00043835,14]
[331362562,1720275045602,-503.27796555,0.00043835,120]
[331362563,1720275045613,-503.30751801,0.00043835,120]
[331362564,1720275045628,-950.0,0.00043835,120]
[331362565,1720275045638,-505.05968005,0.00043835,120]
[331362566,1720275045650,-503.70306091,0.00043835,120]
[331362567,1720275045671,-500.0,0.00043835,120]
[331362568,1720275045682,-500.0,0.00043835,120]
[331362569,1720275045692,-500.0,0.00043835,120]
[331362570,1720275045703,-502.105565,0.00043835,120]
[331362571,1720275045715,-500.0,0.00043835,120]
[331362572,1720275045726,-641.05,0.00043835,120]
[331362573,1720275045820,-781.94,0.00043835,120]
[331362574,1720275045861,-500.0,0.00043835,120]
[331362575,1720275045922,-500.0,0.00043835,120]
[331362576,1720275045949,-500.0,0.00043835,120]
[331362577,1720275045965,-500.0,0.00043835,120]
[331362578,1720275046008,-500.0,0.00043835,120]
[331362579,1720275046024,-500.0,0.00043835,120]
[331362580,1720275046068,-500.0,0.00043835,120]
[331362581,1720275046137,-500.0,0.00043835,120]
[331362582,1720275046149,-500.0,0.00043835,120]
[331362583,1720275046160,-500.0,0.00043835,120]
[331362584,1720275046170,-500.0,0.00043835,120]
[331362585,1720275046181,-228.24926887,0.00043835,120]
[331362586,1720275046239,-500.0,0.00043835,120]
[331362587,1720275046310,-500.0,0.00043835,120]
[331362588,1720275046322,-500.0,0.00043835,120]
[331362589,1720275046333,-275.25815456,0.00043835,120]
[331362590,1720275046345,-500.0,0.00043835,120]
[331362591,1720275046366,-1818.15,0.00043835,120]
[331362592,1720275046381,-500.0,0.00043835,120]
[331362593,1720275046392,-500.0,0.00043835,120]
[331362594,1720275046402,-1334.59,0.00043835,120]
[331362595,1720275046413,-501.12844132,0.00043835,120]
[331362596,1720275046426,-500.0,0.00043835,120]
[331362597,1720275046438,-519.06,0.00043835,120]
[331362598,1720275046449,-670.69,0.00043835,120]
[331362599,1720275046461,-151.0,0.00043835,14]
[331362600,1720275046471,-155.475557,0.00043835,14]
[331362601,1720275046483,-504.2703496,0.00043835,120]
[331362602,1720275046516,-500.0,0.00043835,120]
[331362603,1720275046541,-170.04902434,0.00043835,120]
[331362604,1720275046568,-500.0,0.00043835,120]
[331362605,1720275046579,-500.0,0.00043835,120]
[331362606,1720275046615,-151.0,0.00043835,14]
[331362607,1720275046644,-500.0,0.00043835,120]
[331362608,1720275046655,-151.0,0.00043835,14]
[331362609,1720275046669,-151.0,0.00043835,14]
[331362610,1720275046681,-151.0,0.00043835,14]
[331362611,1720275046732,-151.0,0.00043835,14]
[331362612,1720275046760,-151.0,0.00043835,14]
[331362613,1720275046772,-170.228099,0.00043835,14]
[331362614,1720275046820,-500.0,0.00043835,120]
[331362615,1720275046831,-151.0,0.00043835,14]
[331362616,1720275046842,-500.0,0.00043835,120]
[331362617,1720275046852,-693.07,0.00043835,120]
[331362618,1720275046886,-511.03104743,0.00043835,120]
[331362619,1720275046898,-500.0,0.00043835,120]
[331362620,1720275046927,-541.42,0.00043835,120]
[331362621,1720275046942,-500.0,0.00043835,120]
[331362622,1720275046957,-500.0,0.00043835,120]
[331362623,1720275046974,-500.0,0.00043835,120]
[331362624,1720275046984,-500.0,0.00043835,120]
[331362625,1720275046996,-500.0,0.00043835,120]
[331362626,1720275047012,-800.06,0.00043835,120]
[331362627,1720275047024,-512.33511608,0.00043835,120]
[331362628,1720275047034,-500.0,0.00043835,120]
[331362629,1720275047047,-500.0,0.00043835,120]
[331362630,1720275047059,-500.0,0.00043835,120]
[331362631,1720275047098,-151.0,0.00043835,14]
[331362632,1720275047110,-151.0,0.00043835,14]
[331362633,1720275047120,-151.0,0.00043835,14]
[331362634,1720275047133,-151.0,0.00043835,14]
[331362635,1720275047152,-500.0,0.00043835,120]
[331362636,1720275047188,-612.26,0.00043835,120]
[331362637,1720275047220,-1351.06,0.00043835,120]
[331362638,1720275047231,-500.0,0.00043835,120]
[331362639,1720275047242,-500.0,0.00043835,120]
[331362640,1720275047251,-502.23795999,0.00043835,120]
[331362641,1720275047268,-500.0,0.00043835,120]
[331362642,1720275047280,-10752.32,0.00043835,120]
[331362643,1720275047309,-500.0,0.00043835,120]
[331362644,1720275047342,-500.0,0.00043835,120]
[331362645,1720275047394,-8093.9,0.00043835,120]
[331362646,1720275047443,-500.0,0.00043835,120]
[331362647,1720275047467,-507.09659938,0.00043835,120]
[331362648,1720275047478,-504.53924056,0.00043835,120]
[331362649,1720275047495,-500.0,0.00043835,120]
[331362650,1720275047507,-151.0,0.00043835,14]
[331362651,1720275047521,-151.0,0.00043835,14]
[331362652,1720275047533,-500.0,0.00043835,120]
[331362653,1720275047544,-151.0,0.00043835,14]
[331362654,1720275047557,-1782.45,0.00043835,120]
[331362655,1720275047578,-151.0,0.00043835,14]
[331362656,1720275047589,-500.0,0.00043835,120]
[331362657,1720275047622,-151.0,0.00043835,14]
[331362658,1720275047636,-500.0,0.00043835,120]
[331362659,1720275047652,-201.32578,0.00043835,14]
[331362660,1720275047689,-500.0,0.00043835,120]
[331362661,1720275047725,-500.0,0.00043835,120]
[331362662,1720275047742,-502.09704005,0.00043835,120]
[331362663,1720275047754,-500.0,0.00043835,2]
[331362664,1720275047775,-500.0,0.00043835,120]
[331362665,1720275047790,-500.0,0.00043835,120]
[331362666,1720275047803,-500.0,0.00043835,120]
[331362667,1720275047823,-500.0,0.00043835,120]
[331362668,1720275047834,-500.0,0.00043835,120]
[331362669,1720275047845,-500.0,0.00043835,120]
[331362670,1720275047903,-503.07161379,0.00043835,120]
[331362671,1720275047966,-502.20466651,0.00043835,120]
[331362672,1720275047990,-684.12,0.00043835,120]
[331362673,1720275048080,-468.71766668,0.00043835,120]
[331362674,1720275048105,-1532.62,0.00043835,120]
[331362675,1720275048125,-500.0,0.00043835,120]
[331362676,1720275048300,-500.0,0.00043835,120]
[331362677,1720275048318,-500.0,0.00043835,20]
[331362678,1720275048329,-862.7,0.00043835,120]
[331362679,1720275048407,-1001.56153496,0.00043835,120]
[331362680,1720275048430,-500.0,0.00043835,120]
[331362681,1720275048441,-500.0,0.00043835,30]
[331362682,1720275048451,-1093.65,0.00043835,21]
[331362683,1720275048471,-500.0,0.00043835,120]
[331362684,1720275048506,-500.0,0.00043835,120]
[331362685,1720275048582,-1402.12,0.00043835,120]
[331362686,1720275048616,-151.0,0.00043835,14]
[331362687,1720275048627,-500.0,0.00043835,120]
[331362688,1720275048637,-500.0,0.00043835,120]
[331362689,1720275048648,-502.62147362,0.00043835,120]
[331362690,1720275048660,-151.0,0.00043835,14]
[331362691,1720275048679,-500.51964792,0.00043835,120]
[331362692,1720275048728,-2071.72,0.00043835,120]
[331362693,1720275048742,-500.0,0.00043835,120]
[331362694,1720275048777,-500.0,0.00043835,120]
[331362695,1720275048787,-740.07,0.00043835,120]
[331362696,1720275048800,-500.0,0.00043835,120]
[331362697,1720275048828,-151.0,0.00043835,14]
[331362700,1720275048853,-151.0,0.00043835,14]
[331362704,1720275048862,-151.0,0.00043835,14]
[331362710,1720275048888,-151.0,0.00043835,14]
[331362718,1720275048934,-506.87151575,0.00043835,90]
[331362723,1720275048950,-500.0,0.00043835,120]
[331362732,1720275048986,-500.0,0.00043835,120]
[331362734,1720275048998,-151.0,0.00043835,14]
[331362756,1720275049126,-500.0,0.00043835,120]
[331362760,1720275049146,-151.0,0.00043835,14]
[331362762,1720275049158,-1093.54,0.00043835,120]
[331362767,1720275049205,-316.30495166,0.00043835,120]
[331362770,1720275049222,-500.0,0.00043835,120]
[331362772,1720275049234,-503.00471302,0.00043835,120]
[331362777,1720275049269,-500.0,0.00043835,120]
[331362779,1720275049307,-500.0,0.00043835,120]
[331362781,1720275049318,-1164.82,0.00043835,120]
[331362785,1720275049344,-500.0,0.00043835,120]
[331362787,1720275049355,-501.39956498,0.00043835,120]
[331362789,1720275049366,-743.31,0.00043835,120]
[331362791,1720275049377,-500.81237583,0.00043835,120]
[331362792,1720275049387,-1153.69,0.00043835,120]
[331362794,1720275049414,-500.0,0.00043835,120]
[331362795,1720275049431,-509.26194695,0.00043835,120]
[331362797,1720275049466,-502.5901249,0.00043835,120]
[331362799,1720275049476,-193.92018827,0.00043835,120]
[331362800,1720275049491,-501.18749534,0.00043835,120]
[331362801,1720275049501,-500.0,0.00043835,120]
[331362802,1720275049512,-500.0,0.00043835,120]
[331362803,1720275049523,-501.84860553,0.00043835,120]
[331362804,1720275049541,-500.0,0.00043835,120]